fUST/lending_fUST_20250817
["ID","MTS","AMOUNT","RATE_DAILY","PERIOD"]
[379912354,1755439838376,-633.1,0.00018471,2]
[379912356,1755439838385,-500.0,0.00018471,2]
[379912358,1755439838394,-480.0,0.00018471,2]
[379912360,1755439838404,-480.0,0.00018471,2]
[379912362,1755439838413,-480.0,0.00018471,2]
[379912364,1755439838423,-480.0,0.00018471,2]
[379912366,1755439838432,-480.0,0.00018471,2]
[379912368,1755439838442,-480.0,0.00018471,2]
[379912370,1755439838453,-480.0,0.00018471,2]
[379912372,1755439838463,-480.0,0.00018471,2]
[379912374,1755439838472,-652.47,0.00018471,2]
[379912376,1755439838481,-480.0,0.00018471,2]
[379912378,1755439838491,-525.17,0.00018471,2]
[379912380,1755439838502,-480.0,0.00018471,2]
[379912382,1755439838512,-480.0,0.00018471,2]
[379912384,1755439838521,-1566.1,0.00018471,2]
[379912386,1755439838531,-480.0,0.00018471,2]
[379912388,1755439838541,-500.0,0.00018471,2]
[379912390,1755439838550,-482.98741126,0.00018471,2]
[379912392,1755439838560,-480.0,0.00018471,2]
[379912394,1755439838570,-480.0,0.00018471,2]
[379912396,1755439838579,-1506.1469894,0.00018471,2]
[379912416,1755439838768,-4574.7330106,0.00018471,2]
[379912418,1755439838778,-480.0,0.00018471,2]
[379912420,1755439838787,-480.0,0.00018471,2]
[379912422,1755439838796,-480.0,0.00018471,2]
[379912424,1755439838805,-754.07,0.00018471,2]
[379912426,1755439838814,-480.0,0.00018471,2]
[379912428,1755439838823,-480.0,0.00018471,2]
[379912430,1755439838833,-480.0,0.00018471,2]
[379912432,1755439838849,-480.0,0.00018471,2]
[379912434,1755439838858,-480.0,0.00018471,2]
[379912436,1755439838867,-480.0,0.00018471,2]
[379912438,1755439838877,-199.61073779,0.00018471,2]
[379912440,1755439838887,-348.41554024,0.00018471,2]
[379912442,1755439838896,-480.0,0.00018471,2]
[379912444,1755439838905,-483.28788146,0.00018471,2]
[379912446,1755439838914,-462.10543636,0.00018471,2]
[379912448,1755439838924,-424.13394678,0.00018471,2]
[379912450,1755439838933,-453.26991476,0.00018471,2]
[379912452,1755439838944,-26.73008524,0.00018471,2]
[379912454,1755439838953,-480.0,0.00018471,2]
[379912455,1755439838964,-481.16572628,0.00018471,2]
[379912456,1755439838973,-480.0,0.00018471,2]
[379912457,1755439838981,-480.0,0.00018471,2]
[379912458,1755439838990,-480.0,0.00018471,2]
[379912459,1755439838999,-481.99374897,0.00018471,2]
[379912460,1755439839009,-482.72373795,0.00018471,2]
[379912461,1755439839022,-480.0,0.00018471,2]
[379912462,1755439839031,-460.36382717,0.00018471,2]
[379912463,1755439839040,-480.0,0.00018471,2]
[379912464,1755439839049,-1174.26,0.00018471,2]
[379912465,1755439839058,-713.96,0.00018472,2]
[379912466,1755439839068,-480.0,0.00018472,2]
[379912467,1755439839078,-480.0,0.00018472,2]
[379912468,1755439839088,-484.9731701,0.00018472,2]
[379912469,1755439839097,-480.0,0.00018472,2]
[379912470,1755439839107,-480.0,0.00018472,2]
[379912471,1755439839117,-480.0,0.00018472,2]
[379912472,1755439839126,-393.20855986,0.00018472,2]
[379912473,1755439839136,-216.87238333,0.00018472,2]
[379912474,1755439839153,-263.12761667,0.00018472,2]
[379912475,1755439839162,-500.0,0.00018473,2]
[379912476,1755439839171,-500.0,0.00018473,2]
[379912477,1755439839181,-501.6316782,0.00018473,2]
[379912478,1755439839190,-500.0,0.00018474,2]
[379912479,1755439839199,-480.0,0.00018474,2]
[379912480,1755439839208,-480.0,0.00018474,2]
[379912481,1755439839217,-480.0,0.00018474,2]
[379912482,1755439839227,-480.0,0.00018474,2]
[379912483,1755439839237,-290.34491015,0.00018474,2]
[379912484,1755439839247,-480.0,0.00018474,2]
[379912485,1755439839256,-586.78874907,0.00018474,2]
[379912486,1755439839266,-480.0,0.00018474,2]
[379912487,1755439839275,-500.0,0.00018474,2]
[379912488,1755439839285,-480.0,0.00018474,2]
[379912489,1755439839295,-480.0,0.00018474,2]
[379912490,1755439839304,-95.77767274,0.00018474,2]
[379912491,1755439839315,-384.22232726,0.00018474,2]
[379912492,1755439839325,-480.0,0.00018474,2]
[379912493,1755439839334,-484.11563837,0.00018474,2]
[379912494,1755439839344,-480.0,0.00018474,2]
[379912496,1755439839354,-480.0,0.00018474,2]
[379912498,1755439839364,-238.8685234,0.00018474,2]
[379912501,1755439839380,-241.1314766,0.00018474,2]
[379912503,1755439839389,-480.0,0.00018474,2]
[379912505,1755439839399,-342.83569012,0.00018474,2]
[379912509,1755439839428,-137.16430988,0.00018474,2]
[379912511,1755439839438,-5719.11,0.00018474,2]
[379912513,1755439839447,-420.0,0.00018474,2]
[379912515,1755439839460,-480.0,0.00018474,2]
[379912517,1755439839470,-731.95,0.00018474,2]
[379912519,1755439839479,-480.0,0.00018474,2]
[379912520,1755439839488,-480.0,0.00018474,2]
[379912522,1755439839498,-159.21515318,0.000185,2]
[379912524,1755439839507,-461.05314454,0.0001853,2]
[379912526,1755439839523,-480.0,0.0001853,2]
[379912528,1755439839536,-598.48,0.0001853,2]
[379912530,1755439839547,-1149.02,0.00018531,3]
[379912532,1755439839556,-574.51,0.00018531,3]
[379912534,1755439839565,-287.25,0.00018531,3]
[379912536,1755439839575,-861.8,0.00018531,3]
[379912538,1755439839584,-500.0,0.0001854,2]
[379912540,1755439839595,-500.0,0.0001854,2]
[379912542,1755439839604,-500.0,0.0001854,2]
[379912544,1755439839613,-500.0,0.0001854,2]
[379912546,1755439839624,-500.0,0.0001854,2]
[379912548,1755439839633,-500.0,0.0001854,2]
[379912550,1755439839643,-500.0,0.0001854,2]
[379912553,1755439839654,-500.0,0.0001854,2]
[379912554,1755439839663,-500.0,0.0001854,2]
[379912556,1755439839673,-254.02085561,0.0001854,2]
[379912558,1755439839683,-156755.69457006,0.00018541,2]
[379912560,1755439839692,-848.25,0.0001857,2]
[379912562,1755439839701,-480.0,0.0001857,2]
[379912564,1755439839715,-480.0,0.0001857,2]
[379912566,1755439839728,-975.09,0.0001857,2]
[379912568,1755439839737,-1328.54,0.0001857,2]
[379912570,1755439839746,-2687.29,0.0001857,2]
[379912572,1755439839755,-1067.92,0.0001857,2]
[379912574,1755439839765,-480.0,0.0001857,2]
[379912576,1755439839774,-621.59,0.0001857,2]
[379912578,1755439839783,-543.11,0.0001857,2]
[379912580,1755439839793,-500.0,0.00018573,2]
[379912582,1755439839802,-334.68504628,0.00018573,2]
[379912584,1755439839812,-500.0,0.00018573,2]
[379912586,1755439839821,-500.0,0.00018573,2]
[379912588,1755439839831,-500.0,0.00018573,2]
[379912591,1755439839840,-500.0,0.00018573,2]
[379912594,1755439839850,-500.0,0.00018573,2]
[379912597,1755439839859,-254.1170082,0.00018573,2]
[379912599,1755439839868,-500.0,0.00018573,2]
[379912602,1755439839877,-500.0,0.00018573,2]
[379912605,1755439839886,-500.0,0.00018573,2]
[379912608,1755439839895,-520.95011089,0.00018637,2]
[379912611,1755439839904,-151.0,0.00018637,2]
[379912612,1755439839914,-480.0,0.00018638,2]
[379912614,1755439839924,-480.0,0.00018638,2]
[379912617,1755439839933,-480.0,0.00018638,2]
[379912618,1755439839943,-480.0,0.00018638,2]
[379912620,1755439839953,-480.0,0.00018638,2]
[379912622,1755439839963,-480.0,0.00018638,2]
[379912624,1755439839972,-866.62,0.00018638,2]
[379912626,1755439839982,-405.09213369,0.00018638,2]
[379912628,1755439839991,-480.0,0.00018638,2]
[379912630,1755439840001,-480.0,0.00018638,2]
[379912632,1755439840011,-440.0,0.00018638,2]
[379912634,1755439840020,-480.0,0.00018638,2]
[379912636,1755439840030,-460.14822663,0.00018638,2]
[379912638,1755439840040,-480.0,0.00018638,2]
[379912640,1755439840050,-480.0,0.00018638,2]
[379912642,1755439840059,-460.0,0.00018638,2]
[379912644,1755439840068,-480.0,0.00018638,2]
[379912646,1755439840077,-480.0,0.00018638,2]
[379912647,1755439840086,-4038.63,0.00018638,2]
[379912648,1755439840097,-480.0,0.00018638,2]
[379912649,1755439840106,-480.0,0.00018638,2]
[379912650,1755439840115,-500.32,0.00018638,2]
[379912651,1755439840125,-480.0,0.00018638,2]
[379912652,1755439840135,-480.0,0.00018638,2]
[379912654,1755439840145,-480.0,0.00018638,2]
[379912656,1755439840155,-480.0,0.00018638,2]
[379912658,1755439840165,-481.61662506,0.00018638,2]
[379912660,1755439840176,-480.0,0.00018638,2]
[379912662,1755439840186,-712.88,0.00018641,2]
[379912664,1755439840196,-564.69,0.00018641,2]
[379912666,1755439840206,-525.02,0.00018641,2]
[379912668,1755439840215,-406.54661616,0.00018641,2]
[379912670,1755439840225,-480.0,0.00018641,2]
[379912672,1755439840234,-238.49599842,0.00018641,2]
[379912674,1755439840244,-480.0,0.00018642,2]
[379912676,1755439840253,-480.0,0.00018642,2]
[379912678,1755439840263,-480.0,0.00018642,2]
[379912680,1755439840273,-480.0,0.00018642,2]
[379912682,1755439840282,-480.53698419,0.00018642,2]
[379912684,1755439840292,-480.0,0.00018642,2]
[379912685,1755439840301,-481.23536927,0.00018642,2]
[379912687,1755439840311,-402.87267177,0.00018642,2]
[379912689,1755439840319,-480.0,0.00018642,2]
[379912691,1755439840329,-1490.66,0.00018642,2]
[379912693,1755439840339,-480.0,0.00018642,2]
[379912695,1755439840348,-480.0,0.00018642,2]
[379912697,1755439840358,-1939.25,0.00018642,2]
[379912699,1755439840368,-480.0,0.00018642,2]
[379912701,1755439840377,-7920.16953177,0.00018644,2]
[379912703,1755439840387,-480.0,0.00018743,2]
[379912705,1755439840397,-480.0,0.00018743,2]
[379912707,1755439840407,-480.0,0.00018743,2]
[379912709,1755439840416,-510.45,0.00018744,2]
[379912711,1755439840426,-251.07342321,0.00018744,2]
[379912713,1755439840435,-480.0,0.00018744,2]
[379912714,1755439840446,-564.76,0.00018744,2]
[379912715,1755439840460,-480.0,0.00018744,2]
[379912716,1755439840469,-480.0,0.00018744,2]
[379912717,1755439840479,-480.0,0.00018744,2]
[379912718,1755439840490,-480.0,0.00018744,2]
[379912719,1755439840499,-480.0,0.00018744,2]
[379912720,1755439840508,-480.0,0.00018744,2]
[379912722,1755439840517,-284.98505462,0.00018744,2]
[379912724,1755439840527,-480.0,0.00018744,2]
[379912726,1755439840537,-2026.1,0.00018744,2]
[379912728,1755439840546,-480.0,0.00018744,2]
[379912730,1755439840555,-614.56,0.00018744,2]
[379912732,1755439840564,-464.67117804,0.00018744,2]
[379912734,1755439840573,-480.0,0.00018744,2]
[379912736,1755439840583,-648.05,0.00018744,2]
[379912738,1755439840592,-480.0,0.00018744,2]
[379912740,1755439840601,-321.37116679,0.00018744,2]
[379912741,1755439840611,-799.94,0.00018744,2]
[379912743,1755439840622,-480.0,0.00018744,2]
[379912745,1755439840632,-526.49,0.00018744,2]
[379912747,1755439840641,-480.0,0.00018745,2]
[379912749,1755439840651,-729.66,0.00018745,2]
[379912751,1755439840660,-480.0,0.00018745,2]
[379912753,1755439840670,-480.0,0.00018745,2]
[379912755,1755439840679,-510.29,0.00018745,2]
[379912757,1755439840689,-542.44,0.00018745,2]
[379912760,1755439840698,-872.07,0.00018745,2]
[379912761,1755439840708,-480.0,0.00018745,2]
[379912764,1755439840719,-480.0,0.00018745,2]
[379912765,1755439840728,-867.03,0.00018745,2]
[379912768,1755439840738,-480.0,0.00018745,2]
[379912769,1755439840747,-516.77,0.00018745,2]
[379912771,1755439840756,-480.0,0.00018745,2]
[379912773,1755439840766,-480.0,0.00018745,2]
[379912775,1755439840775,-633.1,0.00018745,2]
[379912777,1755439840785,-480.0,0.00018745,2]
[379912779,1755439840794,-460.0,0.00018745,2]
[379912781,1755439840804,-480.0,0.00018745,2]
[379912783,1755439840813,-480.0,0.00018745,2]
[379912785,1755439840822,-480.0,0.00018745,2]
[379912787,1755439840831,-480.0,0.00018745,2]
[379912789,1755439840841,-652.47,0.00018745,2]
[379912791,1755439840851,-480.0,0.00018745,2]
[379912793,1755439840859,-480.0,0.00018745,2]
[379912795,1755439840868,-1566.1,0.00018745,2]
[379912797,1755439840878,-329.15034124,0.00018745,2]
[379912799,1755439840889,-6080.88,0.00018745,2]
[379912801,1755439840898,-480.0,0.00018745,2]
[379912803,1755439840907,-754.07,0.00018745,2]
[379912805,1755439840917,-480.0,0.00018745,2]
[379912807,1755439840927,-480.0,0.00018745,2]
[379912809,1755439840937,-480.0,0.00018745,2]
[379912811,1755439840947,-480.0,0.00018745,2]
[379912813,1755439840956,-480.0,0.00018745,2]
[379912815,1755439840966,-480.0,0.00018745,2]
[379912817,1755439840975,-1174.26,0.00018745,2]
[379912819,1755439840985,-713.96,0.00018746,2]
[379912821,1755439840995,-480.0,0.00018746,2]
[379912823,1755439841005,-480.0,0.00018746,2]
[379912825,1755439841014,-480.0,0.00018746,2]
[379912827,1755439841023,-480.0,0.00018746,2]
[379912829,1755439841032,-480.0,0.00018748,2]
[379912831,1755439841042,-480.0,0.00018748,2]
[379912833,1755439841051,-480.0,0.00018748,2]
[379912834,1755439841060,-480.0,0.00018748,2]
[379912849,1755439841069,-480.0,0.00018748,2]
[379912851,1755439841199,-480.0,0.00018748,2]
[379912853,1755439841208,-480.0,0.00018748,2]
[379912855,1755439841218,-480.0,0.00018748,2]
[379912857,1755439841227,-262.3415838,0.00018748,2]
[379912859,1755439841236,-5719.11,0.00018748,2]
[379912861,1755439841246,-480.0,0.00018748,2]
[379912863,1755439841255,-731.95,0.00018748,2]
[379912865,1755439841265,-250.0,0.00018753,2]
[379912867,1755439841274,-628.88887362,0.00018759,2]
[379912869,1755439841284,-3648.11443723,0.00018767,2]
[379912870,1755439841294,-598.48,0.00018804,2]
[379912872,1755439841303,-1000.0,0.00018815,2]
[379912874,1755439841313,-200.0,0.00018839,20]
[379912876,1755439841323,-200.0,0.00018839,20]
[379912878,1755439841332,-200.0,0.00018839,20]
[379912881,1755439841343,-200.0,0.00018839,20]
[379912882,1755439841352,-200.0,0.00018839,20]
[379912884,1755439841362,-200.0,0.00018839,20]
[379912886,1755439841371,-200.0,0.00018839,20]
[379912888,1755439841381,-200.0,0.00018839,20]
[379912890,1755439841390,-200.0,0.00018839,20]
[379912892,1755439841400,-200.0,0.00018839,20]
[379912894,1755439841410,-600.0,0.00018839,20]
[379912896,1755439841420,-848.25,0.00018844,2]
[379912898,1755439841429,-480.0,0.00018844,2]
[379912900,1755439841439,-480.0,0.00018844,2]
[379912902,1755439841449,-975.09,0.00018844,2]
[379912904,1755439841461,-1328.54,0.00018844,2]
[379912906,1755439841470,-2687.29,0.00018844,2]
[379912908,1755439841480,-1067.92,0.00018844,2]
[379912910,1755439841488,-480.0,0.00018844,2]
[379912912,1755439841498,-543.11,0.00018844,2]
[379912914,1755439841507,-1066.91076032,0.000189,2]
[379912916,1755439841517,-480.0,0.00018912,2]
[379912918,1755439841526,-232.85226335,0.00018912,2]
[379912920,1755439841536,-866.62,0.00018912,2]
[379912922,1755439841547,-480.0,0.00018912,2]
[379912924,1755439841556,-480.0,0.00018912,2]
[379912926,1755439841565,-4038.63,0.00018912,2]
[379912928,1755439841574,-480.0,0.00018912,2]
[379912930,1755439841583,-712.88,0.00018915,2]
[379912932,1755439841592,-564.69,0.00018915,2]
[379912934,1755439841602,-525.02,0.00018915,2]
[379912936,1755439841611,-151.0,0.00018916,2]
[379912938,1755439841622,-151.0,0.00018916,2]
[379912940,1755439841631,-151.0,0.00018916,2]
[379912942,1755439841640,-480.0,0.00018916,2]
[379912944,1755439841649,-480.0,0.00018916,2]
[379912946,1755439841658,-480.0,0.00018916,2]
[379912948,1755439841667,-1490.66,0.00018916,2]
[379912950,1755439841677,-480.0,0.00018916,2]
[379912952,1755439841686,-1939.25,0.00018916,2]
[379912954,1755439841695,-151.0,0.00018917,2]
[379912956,1755439841704,-151.0,0.00018917,2]
[379912958,1755439841713,-151.0,0.00018917,2]
[379912960,1755439841723,-166.882051,0.00018917,2]
[379912962,1755439841732,-151.0,0.00018917,2]
[379912964,1755439841741,-151.0,0.00018917,2]
[379912965,1755439841750,-522.821847,0.00018917,2]
[379912967,1755439841759,-522.821847,0.00018917,2]
[379912969,1755439841768,-826.863756,0.00018917,2]
[379912971,1755439841778,-826.863756,0.00018917,2]
[379912973,1755439841787,-725.65,0.00019,2]
[379912975,1755439841796,-609.15,0.00019017,2]
[379912977,1755439841806,-480.0,0.00019017,2]
[379912979,1755439841815,-480.0,0.00019017,2]
[379912981,1755439841824,-480.0,0.00019018,2]
[379912983,1755439841833,-564.76,0.00019018,2]
[379912985,1755439841842,-480.0,0.00019018,2]
[379912987,1755439841852,-480.0,0.00019018,2]
[379912989,1755439841860,-473.21887111,0.00019018,2]
[379912991,1755439841870,-480.0,0.00019018,2]
[379912992,1755439841880,-480.0,0.00019018,2]
[379912994,1755439841889,-480.0,0.00019018,2]
[379912996,1755439841899,-2026.1,0.00019018,2]
[379912998,1755439841908,-614.56,0.00019018,2]
[379913000,1755439841918,-480.0,0.00019018,2]
[379913002,1755439841928,-648.05,0.00019018,2]
[379913004,1755439841938,-480.0,0.00019018,2]
[379913006,1755439841948,-799.94,0.00019018,2]
[379913008,1755439841957,-526.49,0.00019018,2]
[379913010,1755439841966,-480.0,0.00019019,2]
[379913012,1755439841975,-729.66,0.00019019,2]
[379913014,1755439841985,-480.0,0.00019019,2]
[379913016,1755439841995,-480.0,0.00019019,2]
[379913018,1755439842004,-510.29,0.00019019,2]
[379913020,1755439842014,-542.44,0.00019019,2]
[379913022,1755439842025,-872.07,0.00019019,2]
[379913024,1755439842035,-480.0,0.00019019,2]
[379913026,1755439842048,-480.0,0.00019019,2]
[379913029,1755439842070,-867.03,0.00019019,2]
[379913031,1755439842084,-480.0,0.00019019,2]
[379913033,1755439842093,-516.77,0.00019019,2]
[379913035,1755439842103,-480.0,0.00019019,2]
[379913037,1755439842112,-480.0,0.00019019,2]
[379913039,1755439842122,-633.1,0.00019019,2]
[379913041,1755439842142,-480.0,0.00019019,2]
[379913044,1755439842180,-480.0,0.00019019,2]
[379913046,1755439842190,-480.0,0.00019019,2]
[379913048,1755439842199,-480.0,0.00019019,2]
[379913050,1755439842209,-480.0,0.00019019,2]
[379913052,1755439842218,-652.47,0.00019019,2]
[379913054,1755439842228,-480.0,0.00019019,2]
[379913056,1755439842238,-480.0,0.00019019,2]
[379913058,1755439842248,-1566.1,0.00019019,2]
[379913060,1755439842260,-6080.88,0.00019019,2]
[379913062,1755439842270,-754.07,0.00019019,2]
[379913064,1755439842280,-480.0,0.00019019,2]
[379913066,1755439842290,-480.0,0.00019019,2]
[379913068,1755439842300,-254.33868751,0.00019019,2]
[379913070,1755439842309,-713.96,0.0001902,2]
[379913072,1755439842319,-275.4665413,0.0001902,2]
[379913074,1755439842328,-480.0,0.0001902,2]
[379913076,1755439842337,-480.0,0.0001902,2]
[379913078,1755439842346,-480.0,0.0001902,2]
[379913080,1755439842356,-7640.44756606,0.00019021,2]
[379913082,1755439842365,-216.32171201,0.00019022,2]
[379913084,1755439842374,-480.0,0.00019022,2]
[379913086,1755439842384,-480.0,0.00019022,2]
[379913088,1755439842393,-480.0,0.00019022,2]
[379913090,1755439842403,-480.0,0.00019022,2]
[379913092,1755439842413,-319.61363413,0.00019022,2]
[379913094,1755439842423,-5719.11,0.00019022,2]
[379913096,1755439842433,-480.0,0.00019022,2]
[379913098,1755439842443,-731.95,0.00019022,2]
[379913100,1755439842455,-628.88887362,0.00019048,2]
[379913102,1755439842465,-598.48,0.00019078,2]
[379913104,1755439842475,-848.25,0.00019118,2]
[379913106,1755439842484,-480.0,0.00019118,2]
[379913108,1755439842494,-480.0,0.00019118,2]
[379913110,1755439842504,-975.09,0.00019118,2]
[379913112,1755439842513,-1328.54,0.00019118,2]
[379913114,1755439842523,-2687.29,0.00019118,2]
[379913116,1755439842533,-1067.92,0.00019118,2]
[379913118,1755439842542,-480.0,0.00019118,2]
[379913120,1755439842551,-543.11,0.00019118,2]
[379913122,1755439842560,-1000.0,0.00019121,2]
[379913124,1755439842569,-1000.0,0.00019121,2]
[379913126,1755439842578,-1000.0,0.00019121,2]
[379913128,1755439842587,-1000.0,0.00019121,2]
[379913130,1755439842596,-1000.0,0.00019121,2]
[379913132,1755439842606,-1000.0,0.00019121,2]
[379913133,1755439842615,-1000.0,0.00019121,2]
[379913135,1755439842625,-1000.0,0.00019121,2]
[379913137,1755439842634,-1000.0,0.00019121,2]
[379913139,1755439842644,-480.0,0.00019186,2]
[379913141,1755439842653,-866.62,0.00019186,2]
[379913143,1755439842663,-480.0,0.00019186,2]
[379913145,1755439842674,-480.0,0.00019186,2]
[379913147,1755439842684,-4038.63,0.00019186,2]
[379913149,1755439842694,-151.125281,0.00019189,2]
[379913151,1755439842703,-151.0,0.00019189,2]
[379913153,1755439842713,-151.0,0.00019189,2]
[379913155,1755439842722,-151.0,0.00019189,2]
[379913157,1755439842732,-151.0,0.00019189,2]
[379913159,1755439842742,-151.0,0.00019189,2]
[379913161,1755439842755,-151.0,0.00019189,2]
[379913163,1755439842764,-522.821847,0.00019189,2]
[379913165,1755439842774,-522.821847,0.00019189,2]
[379913167,1755439842783,-712.88,0.00019189,2]
[379913169,1755439842793,-564.69,0.00019189,2]
[379913171,1755439842802,-525.02,0.00019189,2]
[379913173,1755439842811,-151.0,0.0001919,2]
[379913175,1755439842821,-1000.0,0.0001919,2]
[379913177,1755439842830,-1000.0,0.0001919,2]
[379913179,1755439842840,-1000.0,0.0001919,2]
[379913182,1755439842849,-1000.0,0.0001919,2]
[379913185,1755439842858,-1000.0,0.0001919,2]
[379913188,1755439842869,-1000.0,0.0001919,2]
[379913191,1755439842878,-1000.0,0.0001919,2]
[379913193,1755439842887,-1000.0,0.0001919,2]
[379913195,1755439842896,-1000.0,0.0001919,2]
[379913197,1755439842905,-1116.455738,0.0001919,2]
[379913199,1755439842914,-480.0,0.0001919,2]
[379913201,1755439842924,-327.837231,0.0001919,2]
[379913203,1755439842934,-231.06741361,0.0001919,2]
[379913205,1755439842943,-327.837231,0.0001919,2]
[379913207,1755439842954,-480.0,0.0001919,2]
[379913209,1755439842963,-826.863756,0.0001919,2]
[379913211,1755439842972,-826.863756,0.0001919,2]
[379913213,1755439842981,-1490.66,0.0001919,2]
[379913215,1755439842990,-1939.25,0.0001919,2]
[379913217,1755439842999,-502.4461357,0.00019223,2]
[379913218,1755439843008,-305.6172303,0.00019248,2]
[379913220,1755439843022,-480.0,0.00019291,2]
[379913223,1755439843034,-480.0,0.00019291,2]
[379913224,1755439843043,-480.0,0.00019292,2]
[379913226,1755439843052,-564.76,0.00019292,2]
[379913228,1755439843062,-480.0,0.00019292,2]
[379913230,1755439843072,-480.0,0.00019292,2]
[379913232,1755439843081,-480.0,0.00019292,2]
[379913234,1755439843100,-480.0,0.00019292,2]
[379913236,1755439843109,-480.0,0.00019292,2]
[379913238,1755439843119,-2026.1,0.00019292,2]
[379913240,1755439843129,-614.56,0.00019292,2]
[379913242,1755439843138,-480.0,0.00019292,2]
[379913244,1755439843149,-648.05,0.00019292,2]
[379913246,1755439843158,-480.0,0.00019292,2]
[379913248,1755439843168,-799.94,0.00019292,2]
[379913250,1755439843177,-526.49,0.00019292,2]
[379913252,1755439843187,-480.0,0.00019293,2]
[379913254,1755439843196,-729.66,0.00019293,2]
[379913256,1755439843205,-480.0,0.00019293,2]
[379913258,1755439843215,-480.0,0.00019293,2]
[379913260,1755439843224,-510.29,0.00019293,2]
[379913262,1755439843233,-542.44,0.00019293,2]
[379913264,1755439843242,-872.07,0.00019293,2]
[379913266,1755439843251,-480.0,0.00019293,2]
[379913268,1755439843261,-480.0,0.00019293,2]
[379913270,1755439843270,-867.03,0.00019293,2]
[379913272,1755439843284,-480.0,0.00019293,2]
[379913274,1755439843293,-516.77,0.00019293,2]
[379913276,1755439843303,-480.0,0.00019293,2]
[379913278,1755439843312,-480.0,0.00019293,2]
[379913280,1755439843321,-633.1,0.00019293,2]
[379913282,1755439843330,-480.0,0.00019293,2]
[379913284,1755439843339,-480.0,0.00019293,2]
[379913286,1755439843349,-480.0,0.00019293,2]
[379913288,1755439843359,-480.0,0.00019293,2]
[379913290,1755439843368,-480.0,0.00019293,2]
[379913292,1755439843380,-652.47,0.00019293,2]
[379913294,1755439843391,-480.0,0.00019293,2]
[379913295,1755439843401,-480.0,0.00019293,2]
[379913297,1755439843410,-1566.1,0.00019293,2]
[379913299,1755439843419,-6080.88,0.00019293,2]
[379913301,1755439843430,-754.07,0.00019293,2]
[379913303,1755439843439,-480.0,0.00019293,2]
[379913305,1755439843454,-301.93055902,0.00019293,2]
[379913307,1755439843463,-713.96,0.00019294,2]
[379913309,1755439843473,-480.0,0.00019294,2]
[379913311,1755439843482,-480.0,0.00019294,2]
[379913313,1755439843491,-480.0,0.00019294,2]
[379913315,1755439843501,-480.0,0.00019296,2]
[379913317,1755439843511,-480.0,0.00019296,2]
[379913319,1755439843519,-480.0,0.00019296,2]
[379913321,1755439843529,-480.0,0.00019296,2]
[379913323,1755439843539,-5719.11,0.00019296,2]
[379913325,1755439843548,-480.0,0.00019296,2]
[379913327,1755439843557,-731.95,0.00019296,2]
[379913329,1755439843567,-152.384671,0.00019329,2]
[379913331,1755439843576,-151.0,0.00019329,2]
[379913333,1755439843586,-151.0,0.00019329,2]
[379913334,1755439843596,-239.481308,0.00019329,2]